bitfinex/quotes_BTCUSD_20221001
["timestamp","ask_amount","ask_price","bid_price","bid_amount"]
[1664616875746,2.86390359,19336.0,19335.0,0.229373]
[1664616875963,3.07249559,19336.0,19335.0,0.229373]
[1664616876183,2.86390359,19336.0,19335.0,0.229373]
[1664616876401,3.50224027,19336.0,19335.0,0.229373]
[1664616876626,3.71083227,19336.0,19335.0,0.229373]
[1664616877095,3.58124027,19336.0,19335.0,0.229373]
[1664616878256,3.09592687,19336.0,19335.0,0.229373]
[1664616878685,3.01692687,19336.0,19335.0,0.229373]
[1664616879145,3.09592687,19336.0,19335.0,0.229373]
[1664616879364,3.04592687,19336.0,19335.0,0.229373]
[1664616879587,3.09592687,19336.0,19335.0,0.229373]
[1664616880076,3.04592687,19336.0,19335.0,0.229373]
[1664616880555,2.96692687,19336.0,19335.0,0.229373]
[1664616881213,0.61602328,19336.0,19335.0,0.229373]
[1664616881668,0.66602328,19336.0,19335.0,0.229373]
[1664616882464,0.53702328,19336.0,19335.0,0.229373]
[1664616882756,1.35138009,19336.0,19335.0,0.229373]
[1664616883323,1.43038009,19336.0,19335.0,0.229373]
[1664616884017,3.82789345,19336.0,19335.0,0.1]
[1664616884470,3.74889345,19336.0,19335.0,0.1]
[1664616884696,3.95748545,19336.0,19335.0,0.1]
[1664616884920,0.25863937,19335.0,19334.0,0.129384]
[1664616885131,1.07037081,19335.0,19334.0,0.258768]
[1664616887101,0.81173144,19335.0,19334.0,0.258768]
[1664616887279,0.89073144,19335.0,19334.0,0.258768]
[1664616888538,0.81173144,19335.0,19334.0,0.258768]
[1664616889207,0.89073144,19335.0,19334.0,0.258768]
[1664616890500,0.81173144,19335.0,19334.0,0.258768]
[1664616891409,0.89073144,19335.0,19334.0,0.258768]
[1664616892530,0.81173144,19335.0,19334.0,0.258768]
[1664616893202,0.51173144,19335.0,19334.0,0.258768]
[1664616893425,0.59073144,19335.0,19334.0,0.258768]
[1664616894977,0.51173144,19335.0,19334.0,0.258768]
[1664616895448,0.59073144,19335.0,19334.0,0.258768]
[1664616896104,0.89073144,19335.0,19334.0,0.258768]
[1664616896544,0.59073144,19335.0,19334.0,0.258768]
[1664616896823,0.51173144,19335.0,19334.0,0.258768]
[1664616897055,0.81173144,19335.0,19334.0,0.258768]
[1664616897277,0.89073144,19335.0,19334.0,0.258768]
[1664616898630,0.81173144,19335.0,19334.0,0.258768]
[1664616899201,0.51173144,19335.0,19334.0,0.258768]
[1664616899416,0.89073144,19335.0,19334.0,0.258768]
[1664616899973,0.59073144,19335.0,19334.0,0.258768]
[1664616900515,0.51173144,19335.0,19334.0,0.258768]
[1664616901432,0.59073144,19335.0,19334.0,0.258768]
[1664616902702,0.51173144,19335.0,19334.0,0.258768]
[1664616903340,0.59073144,19335.0,19334.0,0.258768]
[1664616903587,0.079,19335.0,19334.0,0.258768]
[1664616904707,2.21182496,19336.0,19334.0,0.258768]
[1664616904930,2.7235564,19336.0,19334.0,0.258768]
[1664616905130,0.005,19335.0,19334.0,0.258768]
[1664616907385,0.084,19335.0,19334.0,0.258768]
[1664616908530,0.005,19335.0,19334.0,0.258768]
[1664616909079,0.305,19335.0,19334.0,0.258768]
[1664616909365,0.4279332,19335.0,19334.0,0.258768]
[1664616909939,0.1279332,19335.0,19334.0,0.258768]
[1664616910586,0.0489332,19335.0,19334.0,0.258768]
[1664616911452,0.1279332,19335.0,19334.0,0.258768]
[1664616911670,0.6365252,19335.0,19334.0,0.258768]
[1664616911906,0.4279332,19335.0,19334.0,0.258768]
[1664616912474,0.1279332,19335.0,19334.0,0.258768]
[1664616912693,0.3489332,19335.0,19334.0,0.258768]
[1664616913127,0.0489332,19335.0,19334.0,0.258768]
[1664616913334,0.1279332,19335.0,19334.0,0.258768]
[1664616913840,0.4279332,19335.0,19334.0,0.258768]
[1664616914540,0.3489332,19335.0,19334.0,0.258768]
[1664616915150,0.38939279,19335.0,19334.0,0.258768]
[1664616915366,0.46839279,19335.0,19334.0,0.258768]
[1664616916509,0.38939279,19335.0,19334.0,0.258768]
[1664616917473,0.4279332,19335.0,19334.0,0.258768]
[1664616917694,0.46839279,19335.0,19334.0,0.258768]
[1664616918171,0.4279332,19335.0,19334.0,0.258768]
[1664616918400,3.17219734,19335.0,19334.0,0.258768]
[1664616918623,3.14319734,19335.0,19334.0,0.258768]
[1664616918872,0.45008217,19335.0,19334.0,0.258768]
[1664616919071,0.38939279,19335.0,19334.0,0.258768]
[1664616919519,0.46839279,19335.0,19334.0,0.258768]
[1664616919729,0.52908217,19335.0,19334.0,0.258768]
[1664616919949,0.46839279,19335.0,19334.0,0.258768]
[1664616920532,0.38939279,19335.0,19334.0,0.258768]
[1664616920748,0.43939279,19335.0,19334.0,0.258768]
[1664616921437,0.51839279,19335.0,19334.0,0.258768]
[1664616922480,0.57908217,19335.0,19334.0,0.258768]
[1664616923369,0.78767417,19335.0,19334.0,0.258768]
[1664616923592,0.52908217,19335.0,19334.0,0.258768]
[1664616923811,0.46839279,19335.0,19334.0,0.258768]
[1664616924024,0.57908217,19335.0,19334.0,0.258768]
[1664616924688,0.50008217,19335.0,19334.0,0.258768]
[1664616925430,0.51839279,19335.0,19334.0,0.258768]
[1664616925650,1.09081361,19335.0,19334.0,0.258768]
[1664616925893,1.62800187,19335.0,19334.0,0.258768]
[1664616926111,1.35872049,19335.0,19334.0,0.129384]
[1664616926368,1.69673778,19335.0,19334.0,0.1293128]
[1664616926580,1.3869197,19335.0,19334.0,0.1293128]
[1664616926813,1.3079197,19335.0,19334.0,0.1293128]
[1664616927296,1.56943296,19335.0,19330.0,0.129409]
[1664616927520,0.04051191,19332.0,19330.0,0.129409]
[1664616927740,0.51173144,19331.0,19330.0,0.129409]
[1664616927968,0.85566464,19331.0,19330.0,0.129409]
[1664616928677,0.55566464,19331.0,19330.0,0.129409]
[1664616928902,0.85566464,19331.0,19330.0,0.258818]
[1664616929611,0.61366464,19331.0,19330.0,0.258818]
[1664616930551,0.91366464,19331.0,19330.0,0.258818]
[1664616930769,0.85566464,19331.0,19330.0,0.258818]
[1664616931454,0.90366464,19331.0,19330.0,0.258818]
[1664616931658,0.60366464,19331.0,19330.0,0.258818]
[1664616932037,0.90366464,19331.0,19330.0,0.258818]
[1664616932459,0.60366464,19331.0,19330.0,0.258818]
[1664616932707,0.55566464,19331.0,19330.0,0.258818]
[1664616932858,0.85566464,19331.0,19330.0,0.258818]
[1664616933068,0.85566464,19331.0,19330.0,0.26151268]
[1664616933379,0.55566464,19331.0,19330.0,0.26151268]
[1664616933582,0.60366464,19331.0,19330.0,0.26151268]
[1664616934810,0.60366464,19331.0,19330.0,0.64105054]
[1664616934811,0.0439332,19331.0,19330.0,0.64105054]
[1664616935233,0.0439332,19331.0,19330.0,0.91999492]
[1664616935471,0.1229332,19331.0,19330.0,1.07373659]
[1664616935647,0.1229332,19331.0,19330.0,1.20306859]
[1664616936464,0.1229332,19331.0,19330.0,1.71480003]
[1664616936673,0.0439332,19331.0,19330.0,1.97346503]
[1664616937494,0.1229332,19331.0,19330.0,1.97346503]
[1664616938572,0.0439332,19331.0,19330.0,1.97346503]
[1664616939576,0.1229332,19331.0,19330.0,1.97346503]
[1664616940749,0.0439332,19331.0,19330.0,1.97346503]
[1664616941423,0.1229332,19331.0,19330.0,1.97346503]
[1664616942639,0.0439332,19331.0,19330.0,1.97346503]
[1664616943447,0.1229332,19331.0,19330.0,1.97346503]
[1664616944739,0.0439332,19331.0,19330.0,1.97346503]
[1664616945535,0.1229332,19331.0,19330.0,1.97346503]
[1664616946688,0.0439332,19331.0,19330.0,1.97346503]
[1664616947495,0.12285198,19331.0,19330.0,1.97346503]
[1664616947718,0.12285198,19331.0,19330.0,3.23983436]
[1664616947930,0.12285198,19331.0,19330.0,3.41866864]
[1664616948577,0.12285198,19331.0,19330.0,3.42606864]
[1664616948816,0.04385198,19331.0,19330.0,3.42606864]
[1664616949510,0.12285198,19331.0,19330.0,3.42606864]
[1664616950810,0.04385198,19331.0,19330.0,3.42606864]
[1664616951490,0.12285198,19331.0,19330.0,3.42606864]
[1664616953090,0.04385198,19331.0,19330.0,3.42606864]
[1664616953542,0.12285198,19331.0,19330.0,3.04239503]
[1664616954008,0.12285198,19331.0,19330.0,3.00857745]
[1664616954902,0.04385198,19331.0,19330.0,3.00857745]
[1664616955560,0.12285198,19331.0,19330.0,3.00857745]
[1664616956939,0.04385198,19331.0,19330.0,3.00857745]
[1664616957583,0.12285198,19331.0,19330.0,3.00857745]
[1664616959374,0.04385198,19331.0,19330.0,3.00857745]
[1664616959588,0.12285198,19331.0,19330.0,3.00857745]
[1664616960797,0.04385198,19331.0,19330.0,3.00857745]
[1664616961704,0.12285198,19331.0,19330.0,3.00857745]
[1664616962799,0.04385198,19331.0,19330.0,3.00857745]
[1664616963697,0.12285198,19331.0,19330.0,3.00857745]
[1664616964626,0.12285198,19331.0,19330.0,2.49124745]
[1664616964843,0.04385198,19331.0,19330.0,2.49124745]
[1664616965553,0.12285198,19331.0,19330.0,2.49124745]
[1664616967188,0.04385198,19331.0,19330.0,2.49124745]
[1664616967610,0.12285198,19331.0,19330.0,2.49124745]
[1664616968806,0.04385198,19331.0,19330.0,2.49124745]
[1664616969715,0.12285198,19331.0,19330.0,2.49124745]
[1664616970849,0.04385198,19331.0,19330.0,2.49124745]
[1664616971651,0.12285198,19331.0,19330.0,2.49124745]
[1664616972775,0.04385198,19331.0,19330.0,2.49124745]
[1664616973707,0.12285198,19331.0,19330.0,2.49124745]
[1664616974358,0.12285198,19331.0,19330.0,3.00857745]
[1664616975040,0.04385198,19331.0,19330.0,3.00857745]
[1664616975735,0.12285198,19331.0,19330.0,3.00857745]
[1664616976892,0.04385198,19331.0,19330.0,3.00857745]
[1664616977107,0.04374996,19331.0,19330.0,3.00857745]
[1664616977777,0.12274996,19331.0,19330.0,3.00857745]
[1664616978915,1.3469,19337.0,19332.0,0.5442]
[1664616979157,0.9942,19339.0,19336.0,0.05]
[1664616979455,1.2602,19340.0,19338.0,0.05]
[1664616979717,0.94242142,19342.0,19339.0,0.38418533]
[1664616979925,0.94242142,19342.0,19340.0,0.25483933]
[1664616980395,0.005,19341.0,19340.0,0.25483933]
[1664616980675,0.005,19341.0,19340.0,0.05]
[1664616981127,0.134175,19341.0,19340.0,0.05]
[1664616981787,0.134175,19341.0,19340.0,0.056]
[1664616982943,0.134175,19341.0,19339.0,0.129346]
[1664616983183,0.134175,19341.0,19339.0,0.50478766]
[1664616983411,0.134175,19341.0,19339.0,0.13195342]
[1664616983853,0.134175,19341.0,19339.0,0.21095342]
[1664616984498,0.134175,19341.0,19339.0,0.26890593]
[1664616984945,0.134175,19341.0,19339.0,0.18990593]
[1664616985886,0.134175,19341.0,19339.0,0.26890593]
[1664616987025,0.134175,19341.0,19339.0,0.18990593]
[1664616987731,0.134175,19341.0,19339.0,0.26890593]
[1664616988665,0.134175,19341.0,19339.0,1.15607903]
[1664616988882,0.134175,19341.0,19340.0,0.46839365]
[1664616989077,0.134175,19341.0,19340.0,0.10981265]
[1664616989312,0.134175,19341.0,19339.0,0.70163737]
[1664616989530,0.134175,19341.0,19340.0,0.358581]
[1664616989746,0.134175,19341.0,19340.0,0.079]
[1664616991092,0.134175,19341.0,19339.0,0.70163737]
[1664616991316,0.134175,19341.0,19339.0,1.07707903]
[1664616991546,0.134175,19341.0,19339.0,0.70163737]
[1664616991547,0.1212546,19341.0,19339.0,0.70163737]
[1664616991775,0.1212546,19341.0,19339.0,0.78063737]
[1664616992039,0.1212546,19341.0,19339.0,1.15607903]
[1664616993029,0.1212546,19341.0,19339.0,1.07707903]
[1664616993675,0.1212546,19341.0,19340.0,0.10191265]
[1664616993856,0.1212546,19341.0,19339.0,0.72268486]
[1664616994078,0.1212546,19341.0,19339.0,1.09812652]
[1664616994948,0.1212546,19341.0,19339.0,1.01912652]
[1664616995341,0.1212546,19341.0,19340.0,0.358581]
[1664616995529,0.1212546,19341.0,19339.0,0.64368486]
[1664616995751,0.1212546,19341.0,19339.0,1.22100452]
[1664616995978,0.1212546,19341.0,19340.0,0.358581]
[1664616996190,0.1212546,19341.0,19339.0,1.22100452]
[1664616996457,0.1212546,19341.0,19340.0,0.358581]
[1664616996676,0.1212546,19341.0,19340.0,0.12834715]
[1664616996886,0.1212546,19341.0,19340.0,0.48692815]
[1664616997154,0.1212546,19341.0,19340.0,0.12834715]
[1664616997737,0.1212546,19341.0,19340.0,0.58278881]
[1664616998089,0.1212546,19341.0,19340.0,0.94136981]
[1664616998529,0.1212546,19341.0,19340.0,0.56592815]
[1664616998897,0.1212546,19341.0,19340.0,0.12834715]
[1664616999106,0.1212546,19341.0,19340.0,0.50378881]
[1664616999325,0.1212546,19341.0,19340.0,0.12834715]
[1664616999794,0.1212546,19341.0,19340.0,0.56592815]
[1664617000281,0.1212546,19341.0,19340.0,0.20734715]
[1664617001241,0.1212546,19341.0,19340.0,0.86236981]
[1664617001470,0.1212546,19341.0,19340.0,0.48692815]
[1664617001810,0.1212546,19341.0,19340.0,0.20734715]
[1664617002038,0.1212546,19341.0,19340.0,0.56592815]
[1664617002252,0.1212546,19341.0,19340.0,0.20734715]
[1664617002518,0.1212546,19341.0,19340.0,0.56592815]
[1664617002986,0.1212546,19341.0,19340.0,0.48692815]
[1664617003792,0.3298466,19341.0,19340.0,0.079]
[1664617004036,0.1212546,19341.0,19340.0,0.079]
[1664617005346,0.2505136,19341.0,19340.0,0.079]
[1664617005492,0.1212546,19341.0,19339.0,0.64107744]
[1664617005708,0.1212546,19341.0,19340.0,0.437581]
[1664617005974,0.1212546,19341.0,19340.0,0.079]
[1664617007083,0.1212546,19341.0,19339.0,1.0165191]
[1664617007397,0.1212546,19341.0,19339.0,1.17668072]
[1664617007824,0.1212546,19341.0,19340.0,0.358581]
[1664617008044,0.1212546,19341.0,19339.0,0.88023906]
[1664617008230,0.1212546,19341.0,19339.0,1.25568072]
[1664617008669,0.1212546,19341.0,19340.0,0.358581]
[1664617008887,0.1212546,19341.0,19339.0,0.88023906]
[1664617009203,0.1212546,19341.0,19339.0,1.17668072]
[1664617009428,0.1212546,19341.0,19340.0,0.358581]
[1664617009635,0.1212546,19341.0,19339.0,0.80123906]
[1664617009852,0.1212546,19341.0,19340.0,0.358581]
[1664617010070,0.1212546,19341.0,19339.0,1.25568072]
[1664617010508,0.1212546,19341.0,19340.0,0.358581]
[1664617010726,0.1212546,19341.0,19339.0,1.25568072]
[1664617011257,0.2505136,19341.0,19339.0,1.17668072]
[1664617011870,0.2505136,19341.0,19340.0,0.83567457]
[1664617012080,0.1212546,19341.0,19340.0,0.83567457]
[1664617012465,0.1212546,19341.0,19340.0,1.34740601]
[1664617013808,0.1212546,19341.0,19340.0,1.42640601]
[1664617015600,0.1212546,19341.0,19340.0,0.97196435]
[1664617015829,0.1212546,19341.0,19340.0,1.42640601]
[1664617016302,0.1212546,19341.0,19340.0,1.05096435]
[1664617017214,0.1212546,19341.0,19340.0,0.97196435]
[1664617017969,0.1212546,19341.0,19340.0,1.05096435]
[1664617018193,0.3298466,19341.0,19340.0,0.59073144]
[1664617018420,0.1212546,19341.0,19340.0,0.94931244]
[1664617019054,0.1212546,19341.0,19340.0,0.87031244]
[1664617019934,0.1212546,19341.0,19340.0,0.94931244]
[1664617021073,0.1212546,19341.0,19340.0,0.87031244]
[1664617021572,0.1212546,19341.0,19340.0,1.00782245]
[1664617021997,0.1212546,19341.0,19340.0,1.08682245]
[1664617023233,0.1212546,19341.0,19340.0,1.00782245]
[1664617023944,0.1212546,19341.0,19340.0,1.08682245]
[1664617024996,0.1212546,19341.0,19340.0,1.46226411]
[1664617025243,0.1212546,19341.0,19340.0,1.38326411]
[1664617025899,0.1212546,19341.0,19340.0,1.46226411]
[1664617027157,0.1212546,19341.0,19340.0,1.38326411]
[1664617027578,0.1212546,19341.0,19340.0,1.00782245]
[1664617027999,0.1212546,19341.0,19340.0,1.46226411]
[1664617028211,0.1212546,19341.0,19340.0,1.46219428]
[1664617028368,0.1212546,19341.0,19340.0,1.08675262]
[1664617028587,0.1212546,19341.0,19340.0,0.72817162]
[1664617028798,0.1212546,19341.0,19340.0,1.46219428]
[1664617029056,0.1212546,19341.0,19340.0,1.38319428]
[1664617029850,0.1212546,19341.0,19340.0,1.46219428]
[1664617030071,0.1212546,19341.0,19340.0,1.10361328]
[1664617030277,0.1212546,19341.0,19340.0,1.08675262]
[1664617030498,0.1212546,19341.0,19340.0,0.72817162]
[1664617031027,0.1212546,19341.0,19340.0,1.08675262]
[1664617031196,0.1212546,19341.0,19340.0,1.00775262]
[1664617031413,0.1212546,19341.0,19340.0,1.02461328]
[1664617031640,0.1212546,19341.0,19340.0,1.38319428]
[1664617031845,0.1212546,19341.0,19340.0,1.46219428]
[1664617032113,0.1212546,19341.0,19340.0,1.08675262]
[1664617032287,0.1212546,19341.0,19340.0,1.46219428]
[1664617033221,0.1212546,19341.0,19340.0,1.00775262]
[1664617033657,0.1212546,19341.0,19340.0,1.38319428]
[1664617033778,0.1212546,19341.0,19340.0,1.46219428]
[1664617035128,0.1212546,19341.0,19340.0,1.38319428]
[1664617035350,0.1212546,19341.0,19340.0,1.00768389]
[1664617035814,0.1212546,19341.0,19340.0,1.08668389]
[1664617036029,0.1212546,19341.0,19340.0,1.10354455]
[1664617036274,0.1212546,19341.0,19340.0,1.08668389]
[1664617036764,0.1212546,19341.0,19340.0,1.10354455]
[1664617036998,0.1212546,19341.0,19340.0,1.08668389]
[1664617037582,0.1212546,19341.0,19340.0,1.58796488]
[1664617037799,0.1212546,19341.0,19340.0,1.38312555]
[1664617038011,0.1212546,19341.0,19340.0,1.46212555]
[1664617038462,0.005,19341.0,19340.0,2.22105017]
[1664617039286,0.005,19341.0,19340.0,3.04690917]
[1664617039444,0.005,19341.0,19340.0,3.05430917]
[1664617039873,0.005,19341.0,19340.0,3.13330917]
[1664617041357,0.005,19341.0,19340.0,3.05430917]
[1664617042062,0.005,19341.0,19340.0,3.13330917]
[1664617042498,0.005,19341.0,19340.0,3.18330917]
[1664617043000,0.005,19341.0,19340.0,3.13330917]
[1664617043213,0.005,19341.0,19340.0,3.05430917]
[1664617044117,0.005,19341.0,19340.0,3.13330917]
[1664617045124,0.005,19341.0,19340.0,3.05430917]
[1664617045968,0.005,19341.0,19340.0,3.13330917]
[1664617047312,0.005,19341.0,19340.0,3.05430917]
[1664617047957,0.005,19341.0,19340.0,3.13330917]
[1664617049357,0.005,19341.0,19340.0,3.05430917]
[1664617050037,0.005,19341.0,19340.0,3.13330917]
[1664617051262,0.005,19341.0,19340.0,1.99304617]
[1664617051956,0.005,19341.0,19340.0,2.59824617]
[1664617052894,0.005,19341.0,19340.0,2.05404617]
[1664617053114,0.005,19341.0,19340.0,1.99304617]
[1664617053327,0.005,19341.0,19340.0,1.0848985]
[1664617053978,0.005,19341.0,19340.0,1.2811635]
[1664617054194,0.005,19341.0,19340.0,1.65660516]
[1664617055324,0.005,19341.0,19340.0,1.58960516]
[1664617055578,0.005,19341.0,19340.0,1.2141635]
[1664617056000,0.005,19341.0,19340.0,1.65060516]
[1664617057313,0.005,19341.0,19340.0,1.58960516]
[1664617057528,0.005,19341.0,19340.0,1.80028838]
[1664617057917,0.005,19341.0,19340.0,1.42484672]
[1664617058284,0.005,19341.0,19340.0,1.48584672]
[1664617059217,0.005,19341.0,19340.0,1.86128838]
[1664617059679,0.005,19341.0,19340.0,1.80028838]
[1664617060137,0.005,19341.0,19340.0,1.86128838]
[1664617060822,0.005,19341.0,19340.0,1.2751635]
[1664617061048,0.005,19341.0,19340.0,1.65060516]
[1664617061281,0.005,19341.0,19340.0,1.58960516]
[1664617061502,0.005,19341.0,19340.0,1.2141635]
[1664617061986,0.005,19341.0,19340.0,1.2751635]
[1664617063319,0.005,19341.0,19340.0,1.2141635]
[1664617064130,0.005,19341.0,19340.0,1.2751635]
[1664617065158,0.005,19341.0,19340.0,1.2141635]
[1664617066036,0.005,19341.0,19340.0,1.2751635]
[1664617067462,0.005,19341.0,19340.0,1.2141635]
[1664617068206,0.005,19341.0,19340.0,1.2751635]
[1664617069330,0.005,19341.0,19340.0,1.2141635]
[1664617070216,0.005,19341.0,19340.0,1.2811635]
[1664617070926,0.005,19341.0,19340.0,1.83644421]
[1664617071380,0.005,19341.0,19340.0,1.76944421]
[1664617071825,0.005,19341.0,19340.0,1.39400255]
[1664617072083,0.005,19341.0,19340.0,1.83644421]
[1664617072307,0.005,19341.0,19340.0,1.2811635]
[1664617073396,0.005,19341.0,19340.0,1.2141635]
[1664617074155,0.005,19341.0,19340.0,1.2811635]
[1664617075342,0.005,19341.0,19340.0,1.2141635]
[1664617076250,0.005,19341.0,19340.0,1.06643888]
[1664617076492,0.213592,19341.0,19340.0,0.57859288]
[1664617076713,0.005,19341.0,19340.0,0.93717388]
[1664617077646,0.005,19341.0,19340.0,0.87017388]
[1664617078082,0.005,19341.0,19340.0,0.93717388]
[1664617079428,0.005,19341.0,19340.0,0.87017388]
[1664617079717,0.005,19341.0,19340.0,1.24561554]
[1664617079954,0.005,19341.0,19340.0,0.87017388]
[1664617080147,0.005,19341.0,19340.0,0.92717388]
[1664617080584,0.005,19341.0,19340.0,0.56859288]
[1664617080834,0.005,19341.0,19340.0,0.92717388]
[1664617081494,0.005,19341.0,19340.0,0.87017388]
[1664617081707,0.005,19341.0,19340.0,0.51159288]
[1664617081939,0.005,19341.0,19340.0,0.87017388]
[1664617082220,0.005,19341.0,19340.0,0.92717388]
[1664617083336,0.005,19341.0,19340.0,0.87017388]
[1664617083558,0.005,19341.0,19340.0,0.51159288]
[1664617083776,0.005,19341.0,19340.0,0.87017388]
[1664617084185,0.005,19341.0,19340.0,0.92717388]
[1664617085530,0.005,19341.0,19340.0,0.87017388]
[1664617086213,0.005,19341.0,19340.0,0.92717388]
[1664617087429,0.005,19341.0,19340.0,0.87017388]
[1664617088106,0.005,19341.0,19340.0,0.92717388]
[1664617088581,0.213592,19341.0,19340.0,0.56859288]
[1664617089020,0.005,19341.0,19340.0,0.92717388]
[1664617089459,0.005,19341.0,19340.0,0.51159288]
[1664617089682,0.005,19341.0,19340.0,0.87017388]
[1664617090140,0.005,19341.0,19340.0,0.56859288]
[1664617090617,0.005,19341.0,19340.0,0.92717388]
[1664617091499,0.005,19341.0,19340.0,0.51159288]
[1664617091723,0.005,19341.0,19340.0,0.87017388]
[1664617092156,0.005,19341.0,19340.0,0.56859288]
[1664617092612,0.005,19341.0,19340.0,0.92717388]
[1664617092836,0.005,19341.0,19340.0,0.56859288]
[1664617093057,0.005,19341.0,19340.0,0.92717388]
[1664617093234,0.005,19341.0,19340.0,0.56859288]
[1664617093464,0.005,19341.0,19340.0,0.87017388]
[1664617094165,0.005,19341.0,19340.0,1.30661554]
[1664617094993,0.005,19341.0,19340.0,0.93117388]
[1664617095118,0.005,19341.0,19340.0,1.30661554]
[1664617095328,0.005,19341.0,19340.0,1.24561554]
[1664617095552,0.005,19341.0,19340.0,0.51159288]
[1664617095728,0.005,19341.0,19340.0,0.87017388]
[1664617095941,0.005,19341.0,19340.0,0.51159288]
[1664617096170,0.005,19341.0,19340.0,0.93717388]
[1664617096381,0.005,19341.0,19340.0,1.31261554]
[1664617096667,0.005,19341.0,19340.0,0.93717388]
[1664617097087,0.005,19341.0,19340.0,1.31261554]
[1664617097564,0.005,19341.0,19340.0,1.24561554]
[1664617097764,0.005,19341.0,19340.0,0.87017388]
[1664617098042,0.005,19341.0,19340.0,0.51159288]
[1664617098255,0.005,19341.0,19340.0,0.57259288]
[1664617098452,0.005,19341.0,19340.0,0.93117388]
[1664617099466,0.005,19341.0,19340.0,0.87017388]
[1664617100125,0.005,19341.0,19340.0,0.93117388]
[1664617101408,0.005,19341.0,19340.0,0.87017388]
[1664617102098,0.005,19341.0,19340.0,0.51159288]
[1664617102310,0.005,19341.0,19340.0,0.93117388]
[1664617103256,0.005,19341.0,19340.0,1.30661554]
[1664617103476,0.005,19341.0,19340.0,1.24561554]
[1664617104126,0.005,19341.0,19340.0,1.30661554]
[1664617105464,0.005,19341.0,19340.0,0.88703454]
[1664617105718,0.005,19341.0,19340.0,1.24561554]
[1664617106167,0.005,19341.0,19340.0,1.30661554]
[1664617106654,0.005,19341.0,19340.0,0.57259288]
[1664617107094,0.005,19341.0,19340.0,0.93117388]
[1664617107566,0.005,19341.0,19340.0,0.87017388]
[1664617108226,0.005,19341.0,19340.0,0.93117388]
[1664617109588,0.005,19341.0,19340.0,0.87017388]
[1664617110300,0.005,19341.0,19340.0,0.93717388]
[1664617111661,0.005,19341.0,19340.0,0.87017388]
[1664617112101,0.005,19341.0,19340.0,1.24561554]
[1664617112330,0.005,19341.0,19340.0,1.31261554]
[1664617112569,0.005,19341.0,19340.0,1.36308763]
[1664617112806,0.005,19341.0,19340.0,2.52911271]
[1664617112807,0.00491246,19341.0,19340.0,2.52911271]
[1664617113046,0.00491246,19341.0,19340.0,2.47911271]
[1664617113512,0.00491246,19341.0,19340.0,3.39961304]
[1664617113945,0.00491246,19341.0,19340.0,3.34961304]
[1664617114176,0.00491246,19341.0,19340.0,3.38986579]
[1664617114385,0.00491246,19341.0,19340.0,3.47159891]
[1664617115067,0.00491246,19341.0,19340.0,3.42159891]
[1664617115286,0.00491246,19341.0,19340.0,2.98774896]
[1664617115529,0.00491246,19341.0,19340.0,2.91574896]
[1664617116211,0.00491246,19341.0,19340.0,2.97574896]
[1664617116657,0.00491246,19341.0,19340.0,2.98314896]
[1664617117562,0.00491246,19341.0,19340.0,2.37894896]
[1664617118236,0.00491246,19341.0,19340.0,2.43894896]
[1664617118682,0.00491246,19341.0,19340.0,1.92188596]
[1664617119118,0.00491246,19341.0,19340.0,1.91448596]
[1664617119633,0.00491246,19341.0,19340.0,1.85448596]
[1664617120284,0.00491246,19341.0,19340.0,1.92648596]
[1664617122102,0.00491246,19341.0,19340.0,2.37154896]
[1664617122324,0.00491246,19341.0,19340.0,2.44354896]
[1664617123731,0.00491246,19341.0,19340.0,2.37154896]
[1664617124413,0.00491246,19341.0,19340.0,2.44354896]
[1664617125559,0.00491246,19341.0,19340.0,2.37154896]
[1664617126293,0.00491246,19341.0,19340.0,2.43154896]
[1664617127656,0.00491246,19341.0,19340.0,2.37154896]
[1664617128337,0.00491246,19341.0,19340.0,2.43154896]
[1664617129679,0.00491246,19341.0,19340.0,2.37154896]
[1664617130325,0.00491246,19341.0,19340.0,2.43154896]
[1664617131458,0.00491246,19341.0,19340.0,2.37154896]
[1664617132374,0.00491246,19341.0,19340.0,2.43154896]
[1664617133504,0.00482022,19341.0,19340.0,2.43154896]
[1664617133728,0.00482022,19341.0,19340.0,2.37154896]
[1664617134294,0.00482022,19341.0,19340.0,2.43154896]
[1664617135592,0.00482022,19341.0,19340.0,2.37154896]
[1664617136187,0.00482022,19341.0,19340.0,2.41209858]
[1664617136402,0.00482022,19341.0,19340.0,2.52209858]
[1664617136713,0.00482022,19341.0,19340.0,2.43154896]
[1664617137641,0.00482022,19341.0,19340.0,2.37154896]
[1664617138320,0.00482022,19341.0,19340.0,2.43754896]
[1664617139556,0.00482022,19341.0,19340.0,2.37154896]
[1664617140254,0.00482022,19341.0,19340.0,2.43754896]
[1664617141242,0.00482022,19341.0,19340.0,2.0621073]
[1664617141669,0.00482022,19341.0,19340.0,2.37154896]
[1664617142341,0.00482022,19341.0,19340.0,2.43154896]
[1664617143683,0.00482022,19341.0,19340.0,2.37154896]
[1664617144101,0.00482022,19341.0,19340.0,1.4790443]
[1664617144346,0.00482022,19341.0,19340.0,1.31796988]
[1664617145745,0.00482022,19341.0,19340.0,1.25796988]
[1664617146330,0.00482022,19341.0,19340.0,1.31396988]
[1664617147009,0.00482022,19341.0,19340.0,1.68941154]
[1664617147643,0.00482022,19341.0,19340.0,1.63341154]
[1664617147852,0.00482022,19341.0,19340.0,1.90354783]
[1664617148461,0.00482022,19341.0,19340.0,1.95954783]
[1664617149298,0.00482022,19341.0,19340.0,2.00009745]
[1664617149513,0.00482022,19341.0,19340.0,1.94409745]
[1664617149760,0.00482022,19341.0,19340.0,1.90354783]
[1664617150414,0.00482022,19341.0,19340.0,1.96354783]
[1664617150941,0.00482022,19341.0,19340.0,1.60496683]
[1664617151235,0.00482022,19341.0,19340.0,1.96354783]
[1664617151677,0.00482022,19341.0,19340.0,1.90354783]
[1664617152436,0.00482022,19341.0,19340.0,1.96954783]
[1664617153744,0.00482022,19341.0,19340.0,1.90354783]
[1664617154348,0.00482022,19341.0,19340.0,1.96354783]
[1664617154894,0.00482022,19341.0,19340.0,1.58810617]
[1664617155063,0.00482022,19341.0,19340.0,1.96354783]
[1664617155301,0.00482022,19341.0,19340.0,1.58810617]
[1664617155760,0.00482022,19341.0,19340.0,1.52810617]
[1664617156367,0.00482022,19341.0,19340.0,1.58810617]
[1664617156807,0.00482022,19341.0,19340.0,1.96354783]
[1664617157182,0.00482022,19341.0,19340.0,2.00409745]
[1664617157635,0.00482022,19341.0,19340.0,1.94409745]